bitfinex-derivatives/quotes_BNBF0:USTF0_20241225
["timestamp","ask_amount","ask_price","bid_price","bid_amount"]
[1735160774141,1.31971615,702.28,699.21,0.28603709]
[1735160774343,0.26230616,702.27,699.21,0.28603709]
[1735160774543,0.26230616,702.26,699.21,0.28603709]
[1735160774744,0.26230616,702.25,699.21,0.28603709]
[1735160774941,9.15452211,702.75,699.4,1.06518007]
[1735160774942,1.05740999,701.93,699.4,1.06518007]
[1735160775140,0.26230616,701.92,699.4,1.06518007]
[1735160775746,0.26230616,701.92,699.42,1.06518007]
[1735160775942,0.26230616,701.91,699.42,1.06518007]
[1735160776247,0.26230616,701.9,699.42,1.06518007]
[1735160776445,0.26230616,701.89,699.42,1.06518007]
[1735160776645,0.26230616,701.88,699.42,1.06518007]
[1735160776948,0.26231646,701.87,699.42,1.06518007]
[1735160777247,0.26231646,701.86,699.42,1.06518007]
[1735160777442,0.26231646,701.85,699.42,1.06518007]
[1735160777641,0.26235286,701.84,699.42,1.06518007]
[1735160777845,0.26235286,701.83,699.42,1.06518007]
[1735160778045,0.26235286,701.82,699.42,1.06518007]
[1735160778247,0.26235286,701.81,699.42,1.06518007]
[1735160778548,0.26235286,701.8,699.42,1.06518007]
[1735160778749,0.26235286,701.79,699.42,1.06518007]
[1735160778947,0.26235286,701.78,699.27,2.81098977]
[1735160779142,9.37162801,704.4,699.27,2.81098977]
[1735160779143,0.26235286,701.77,699.28,2.551883]
[1735160779343,0.26235286,701.76,699.29,2.81098977]
[1735160779544,0.26232485,701.75,699.29,2.81098977]
[1735160779748,0.26232485,701.74,699.3,2.551883]
[1735160779947,0.26232485,701.73,699.31,2.81098977]
[1735160780148,0.26232485,701.72,699.31,2.81098977]
[1735160780447,0.26232485,701.71,699.32,2.551883]
[1735160780649,0.26232485,701.7,699.33,2.81098977]
[1735160780847,0.26232485,701.69,699.34,2.551883]
[1735160781048,0.26232485,701.68,699.35,2.81098977]
[1735160781349,0.26232485,701.67,699.35,2.81098977]
[1735160781548,0.26232485,701.66,699.36,2.551883]
[1735160781748,0.26232485,701.65,699.37,2.81098977]
[1735160781948,0.26232485,701.64,699.37,2.81098977]
[1735160782250,0.26233376,701.63,699.38,2.551883]
[1735160782449,0.26233376,701.62,699.38,2.551883]
[1735160782650,0.26233376,701.61,699.21,0.28603709]
[1735160782852,0.26233376,701.6,699.21,0.28603709]
[1735160783053,0.26233376,701.59,699.21,0.28603709]
[1735160783353,0.26233376,701.58,699.21,0.28603709]
[1735160783550,0.26233376,701.57,699.21,0.28603709]
[1735160783750,0.26233376,701.56,699.21,0.28603709]
[1735160784053,0.26233376,701.55,699.21,0.28603709]
[1735160784247,0.26233376,701.54,699.21,0.28603709]
[1735160784449,0.26233376,701.53,699.21,0.28603709]
[1735160784648,0.26233376,701.52,699.21,0.28603709]
[1735160784850,0.26238826,701.51,699.21,0.28603709]
[1735160785045,0.26238826,701.5,699.21,0.28603709]
[1735160785351,0.26238826,701.49,699.21,0.28603709]
[1735160785654,0.26238414,701.48,699.21,0.28603709]
[1735160785853,0.26238414,701.47,699.21,0.28603709]
[1735160786048,0.26238414,701.46,699.21,0.28603709]
[1735160786249,0.26238414,701.45,699.21,0.28603709]
[1735160786448,0.26238414,701.44,699.21,0.28603709]
[1735160786650,0.26238414,701.43,699.21,0.28603709]
[1735160786849,0.26238414,701.42,699.21,0.28603709]
[1735160787046,0.26238414,701.41,699.21,0.28603709]
[1735160787352,0.64017935,703.41,699.21,0.28603709]
[1735160787653,1.80486796,703.4,699.21,0.28603709]
[1735160787852,0.90243159,703.39,699.21,0.28603709]
[1735160788048,0.90243159,703.38,699.21,0.28603709]
[1735160788247,0.90243159,703.37,699.21,0.28603709]
[1735160788447,0.90243159,703.36,699.21,0.28603709]
[1735160788651,0.90243159,703.35,699.21,0.28603709]
[1735160788952,1.05538864,701.68,699.21,0.28603709]
[1735160789252,0.2624241,701.67,699.21,0.28603709]
[1735160789951,1.05538864,701.73,699.21,0.28603709]
[1735160789952,0.2624241,701.66,699.21,0.28603709]
[1735160790153,1.05538864,701.73,699.21,0.28603709]
[1735160790353,0.26241738,701.72,699.21,0.28603709]
[1735160790749,0.26241738,701.71,699.21,0.28603709]
[1735160790950,0.26241738,701.7,699.21,0.28603709]
[1735160791150,0.26241738,701.69,699.21,0.28603709]
[1735160791347,0.26241738,701.68,699.21,0.28603709]
[1735160791551,0.26241738,701.67,699.21,0.28603709]
[1735160791749,0.26241738,701.66,699.21,0.28603709]
[1735160791952,0.26241738,701.65,699.21,0.28603709]
[1735160792157,0.26241738,701.64,699.21,0.28603709]
[1735160792356,0.26241738,701.63,699.21,0.28603709]
[1735160792558,0.26241738,701.62,699.21,0.28603709]
[1735160792856,0.26241803,701.61,699.21,0.28603709]
[1735160793059,0.26241803,701.6,699.21,0.28603709]
[1735160793256,0.26241803,701.8,699.21,0.28603709]
[1735160793456,0.26241803,701.79,699.21,0.28603709]
[1735160793657,1.05538864,701.81,699.21,0.28603709]
[1735160793859,0.26242273,701.8,699.21,0.28603709]
[1735160794361,0.26242273,701.79,699.21,0.28603709]
[1735160794558,0.26242273,701.78,699.21,0.28603709]
[1735160794754,0.26242273,701.77,699.21,0.28603709]
[1735160794953,0.26242273,701.76,699.21,0.28603709]
[1735160795158,0.26242273,701.75,699.21,1.35188564]
[1735160795357,0.26242273,701.74,699.21,1.35188564]
[1735160795563,1.05538864,701.87,699.21,1.35188564]
[1735160795856,0.262383,701.86,699.21,1.35188564]
[1735160796059,0.262383,701.86,699.28,1.06584855]
[1735160796258,0.262383,701.85,699.28,1.06584855]
[1735160796462,0.262383,701.84,699.28,1.06584855]
[1735160796761,0.262383,701.83,699.28,1.06584855]
[1735160796962,0.262383,701.82,699.28,1.06584855]
[1735160797164,0.262383,701.81,699.3,1.06584855]
[1735160797465,0.262383,701.8,699.3,1.06584855]
[1735160797661,0.262383,701.79,699.3,1.06584855]
[1735160797862,0.262383,701.78,699.3,1.06584855]
[1735160798063,0.262383,701.77,699.44,1.06584855]
[1735160798260,1.05538864,701.92,699.44,1.06584855]
[1735160798462,0.26238178,701.91,699.44,1.06584855]
[1735160798656,1.05538864,701.92,699.44,1.06584855]
[1735160798657,0.26238178,701.9,699.44,1.06584855]
[1735160798857,0.26238178,701.89,699.45,1.06584855]
[1735160799063,0.26238178,701.88,699.45,1.06584855]
[1735160799262,0.26238178,701.87,699.45,1.06584855]
[1735160799565,0.26238178,701.86,699.45,1.06584855]
[1735160799766,0.26238178,701.85,699.45,1.06584855]
[1735160800063,1.05538864,701.82,699.33,1.06584855]
[1735160800264,0.26238178,701.81,699.33,1.06584855]
[1735160800764,0.26238178,701.8,699.36,1.06584855]
[1735160801065,0.26241938,701.79,699.36,1.06584855]
[1735160801257,0.26241938,701.78,699.36,1.06584855]
[1735160801462,0.26241938,701.77,699.37,1.06584855]
[1735160801664,0.26241938,701.76,699.37,1.06584855]
[1735160801858,0.26241938,701.75,699.37,1.06584855]
[1735160802057,0.26241938,701.74,699.37,1.06584855]
[1735160802262,0.26241938,701.73,699.37,1.06584855]
[1735160802566,0.26241938,701.72,699.39,1.06584855]
[1735160802765,0.26241938,701.71,699.39,1.06584855]
[1735160802966,0.26241938,701.7,699.39,1.06584855]
[1735160803165,0.26241938,701.69,699.41,1.06584855]
[1735160803365,0.26241938,701.68,699.41,1.06584855]
[1735160803565,0.26241938,701.67,699.41,1.06584855]
[1735160803764,0.26239991,701.66,699.41,1.06584855]
[1735160803960,0.26239991,701.65,699.41,1.06584855]
[1735160804161,0.26239991,701.64,699.41,1.06584855]
[1735160804363,0.26239991,701.63,699.43,1.06584855]
[1735160804558,0.26239991,701.83,699.43,1.06584855]
[1735160804765,0.26239991,701.82,699.26,5.39387683]
[1735160805063,1.05369993,701.8,699.42,1.06433188]
[1735160805262,0.26239991,701.79,699.42,1.06433188]
[1735160805866,0.26239991,701.78,699.42,1.06433188]
[1735160806168,1.05369993,701.74,699.48,1.06433188]
[1735160806470,0.26239991,701.73,699.48,1.06433188]
[1735160806967,1.05369993,701.7,699.49,1.06433188]
[1735160807169,0.26239991,701.69,699.49,1.06433188]
[1735160807962,0.26239991,701.69,699.23,1.06433188]
[1735160808163,0.26239991,701.68,699.23,1.06433188]
[1735160808467,0.26239991,701.67,699.23,1.06433188]
[1735160808662,0.26239991,701.66,699.23,1.06433188]
[1735160808862,0.26239991,701.65,699.23,1.06433188]
[1735160809061,0.26239991,701.65,699.21,0.28603709]
[1735160809062,0.26245364,701.64,699.21,0.28603709]
[1735160809261,0.26245364,701.74,699.21,0.28603709]
[1735160809467,0.26245364,701.73,699.21,0.28603709]
[1735160809665,0.26245364,701.72,699.21,0.28603709]
[1735160809863,1.05369993,701.7,699.22,1.06433188]
[1735160810065,0.26245364,701.69,699.22,1.06433188]
[1735160810462,1.05369993,701.65,699.21,1.35036897]
[1735160810667,0.26245364,701.64,699.21,1.35036897]
[1735160810968,0.26245364,701.63,699.21,1.35036897]
[1735160811162,0.26245364,701.62,699.21,1.35036897]
[1735160811367,1.05369993,701.47,699.38,1.06433188]
[1735160811566,0.26245364,701.46,699.38,1.06433188]
[1735160811971,0.26244751,701.45,699.38,1.06433188]
[1735160812166,0.26244751,701.44,699.53,1.06433188]
[1735160812371,2.51386592,701.76,699.53,1.06433188]
[1735160812372,1.05369993,701.36,699.53,1.06433188]
[1735160812571,0.26244751,701.35,699.53,1.06433188]
[1735160812873,0.26244751,701.35,699.54,0.28590216]
[1735160813067,1.33887238,701.33,699.57,1.06433188]
[1735160813268,0.26244673,701.32,699.57,1.06433188]
[1735160813866,0.26244673,701.32,699.6,1.06433188]
[1735160814469,0.26244673,701.32,699.59,1.06433188]
[1735160814772,0.26241737,701.31,699.59,1.06433188]
[1735160814973,0.26241737,701.3,699.59,1.06433188]
[1735160815169,0.26241737,701.29,699.59,1.06433188]
[1735160815372,0.26241737,701.28,699.62,1.06433188]
[1735160815567,0.26241737,701.27,699.62,1.06433188]
[1735160815771,0.26241737,701.26,699.62,1.06433188]
[1735160815972,0.26241737,701.25,699.58,1.06433188]
[1735160816272,0.26241737,701.24,699.58,1.06433188]
[1735160816472,0.26241737,701.23,699.58,1.06433188]
[1735160816669,0.26241737,701.22,699.59,1.06433188]
[1735160816866,0.26241737,701.21,699.59,1.06433188]
[1735160817067,0.26241737,701.2,699.59,1.06433188]
[1735160817267,0.28517245,701.33,699.59,1.06433188]
[1735160817468,0.26242304,701.32,699.59,1.06433188]
[1735160817671,0.26242304,701.32,699.62,1.06433188]
[1735160818275,0.26242304,701.32,699.65,1.06433188]
[1735160819076,0.26242304,701.32,699.67,1.06433188]
[1735160819872,0.26242304,701.32,699.56,1.06433188]
[1735160820274,0.26242038,701.31,699.56,1.06433188]
[1735160820475,0.28517245,701.33,699.56,1.06433188]
[1735160820979,0.28517245,701.33,699.54,0.28590216]
[1735160823478,0.28517245,701.33,699.54,1.35023404]
[1735160824283,0.28517245,701.33,699.65,1.06433188]
[1735160825077,0.28517245,701.33,699.74,1.06433188]
[1735160825883,0.28517245,701.33,699.54,0.28590216]
[1735160827179,0.26238361,701.32,699.54,0.28590216]
[1735160827378,0.28517245,701.33,699.54,0.28590216]
[1735160827983,0.28517245,701.33,699.77,1.06433188]
[1735160828985,0.28517245,701.33,699.76,1.06433188]
[1735160829884,0.28517245,701.33,699.73,1.06433188]
[1735160830492,0.28517245,701.33,699.74,0.28582044]
[1735160830689,0.28517245,701.33,699.76,1.06433188]
[1735160831287,0.28517245,701.33,699.77,0.28580819]
[1735160832990,0.28517245,701.33,699.77,1.35014007]
[1735160833692,0.26237586,701.32,699.77,1.35014007]
[1735160833993,0.28517245,701.33,699.77,1.35014007]
[1735160835995,0.28517245,701.33,699.77,0.28580819]
[1735160850699,0.26240719,701.32,699.77,0.28580819]
[1735160851705,0.26240276,701.31,699.77,0.28580819]
[1735160852005,0.26240276,701.3,699.77,0.28580819]
[1735160852207,0.26240276,701.29,699.77,0.28580819]
[1735160852505,0.26240276,701.28,699.77,0.28580819]
[1735160852806,0.26240276,701.27,699.77,0.28580819]
[1735160853006,0.26240276,701.26,699.77,0.28580819]
[1735160853205,0.26240276,701.25,699.77,0.28580819]
[1735160853408,0.26240276,701.24,699.77,0.28580819]
[1735160853607,0.26240276,701.23,699.77,0.28580819]
[1735160853803,0.26240276,701.22,699.77,0.28580819]
[1735160854000,0.26240276,701.21,699.77,0.28580819]
[1735160854303,0.28517245,701.33,699.77,0.28580819]
[1735160854506,0.26245357,701.32,699.77,0.28580819]
[1735160857210,0.28518465,701.3,699.77,0.28580819]
[1735160857406,0.26245357,701.29,699.77,0.28580819]
[1735160858211,0.28519279,701.28,699.77,0.28580819]
[1735160862217,0.26239489,701.27,699.77,0.28580819]
[1735160862418,0.28519279,701.28,699.77,0.28580819]
[1735160862613,0.26238473,701.27,699.77,0.28580819]
[1735160862818,0.28519279,701.28,699.77,0.28580819]
[1735160863816,0.28519279,701.28,699.79,1.06433188]
[1735160864021,0.28519279,701.28,699.8,0.28579594]
[1735160865924,0.28519279,701.28,699.84,1.06433188]
[1735160866919,0.28519279,701.28,699.8,0.28579594]
[1735160868525,0.28519279,701.28,699.8,1.35012782]
[1735160869823,0.28519279,701.28,699.8,0.28579594]
[1735160870625,0.28519279,701.28,699.82,1.06433188]
[1735160871628,0.28519279,701.28,699.8,0.28579594]
[1735160871629,0.28519279,701.28,699.81,1.06433188]
[1735160872228,0.28519279,701.28,699.8,0.28579594]
[1735160881534,0.28519279,701.28,699.82,1.06433188]
[1735160882438,0.28519279,701.28,699.83,1.06433188]
[1735160884436,0.28519279,701.28,699.8,0.28579594]
[1735160905453,0.26238511,701.27,699.8,0.28579594]
[1735160906047,0.28519279,701.28,699.8,0.28579594]
[1735160906352,0.26238547,701.27,699.8,0.28579594]
[1735160907148,0.28520092,701.26,699.8,0.28579594]
[1735160907752,0.26238865,701.25,699.8,0.28579594]
[1735160907951,0.54759364,701.25,699.8,0.28579594]
[1735160908152,0.28520499,701.25,699.8,0.28579594]
[1735160909653,0.26238926,701.24,699.8,0.28579594]
[1735160909949,0.28520499,701.25,699.8,0.28579594]
[1735160917858,0.28520499,701.25,699.82,1.06433188]
[1735160918859,0.28520499,701.25,699.8,0.28579594]
[1735160918860,0.28520499,701.25,699.8,1.35012782]
[1735160919456,1.05369993,702.07,699.81,1.06433188]
[1735160919760,0.28487999,702.05,699.81,1.06433188]
[1735160919961,0.26226968,702.04,699.81,1.06433188]
[1735160921454,0.26223377,702.03,699.81,1.06433188]
[1735160921659,0.26223377,702.04,699.81,1.06433188]
[1735160921859,0.26223377,702.03,699.81,1.06433188]
[1735160922061,0.26223377,702.02,699.81,1.06433188]
[1735160922264,0.26223377,702.04,699.81,1.06433188]
[1735160922562,0.26223377,702.03,699.81,1.06433188]
[1735160922862,0.26223377,702.02,699.9,1.06433188]
[1735160923060,0.26223377,702.01,699.9,1.06433188]
[1735160923261,0.26223377,702.0,699.9,1.06433188]
[1735160923463,0.26223377,702.04,699.9,1.06433188]
[1735160923662,0.26223377,702.03,699.9,1.06433188]
[1735160923859,0.26217362,702.02,699.9,1.06433188]
[1735160924056,0.26217362,702.01,699.9,1.06433188]
[1735160924255,0.26216489,702.0,699.89,1.06433188]
[1735160924463,0.26216298,702.04,699.89,1.06433188]
[1735160924662,0.26216298,702.03,699.89,1.06433188]
[1735160924961,0.26216298,702.02,699.89,1.06433188]
[1735160925161,0.26216298,702.01,699.95,1.06433188]
[1735160925364,0.28487999,702.05,699.95,1.06433188]
[1735160925558,0.26213363,702.04,699.95,1.06433188]
[1735160925761,0.28487999,702.05,699.95,1.06433188]
[1735160925960,0.28487999,702.05,699.96,1.06433188]
[1735160926765,0.28487999,702.05,700.04,1.06433188]
[1735160927564,0.28487999,702.05,700.03,1.06433188]
[1735160928363,0.28487999,702.05,700.0,2.57031178]
[1735160928563,0.28487999,702.05,699.94,1.06433188]
[1735160928960,0.28487999,702.05,699.8,0.28579594]
[1735160937874,0.26210719,702.04,699.8,0.28579594]
[1735160938364,0.28487999,702.05,699.8,0.28579594]
[1735160938971,0.26211372,702.04,699.8,0.28579594]
[1735160939372,0.28487999,702.05,699.8,0.28579594]
[1735160940765,0.26209773,702.04,699.8,0.28579594]
[1735160941166,0.28487999,702.05,699.8,0.28579594]
[1735160947472,0.28487999,702.05,699.89,1.05546983]
[1735160948478,0.28487999,702.05,700.17,1.05546983]
[1735160949575,0.28487999,702.05,700.19,1.05546983]
[1735160951179,0.28487999,702.05,700.22,1.05546983]
[1735160951581,1.04794433,702.69,700.22,1.05546983]
[1735160951773,0.54656871,702.68,700.22,1.05546983]
[1735160951973,0.26194413,702.67,700.22,1.05546983]
[1735160952383,0.26194413,702.67,700.03,1.05546983]
[1735160952879,0.28462458,702.68,700.03,1.05546983]
[1735160953177,0.26194817,702.67,700.01,1.05546983]
[1735160954078,0.26194817,702.67,699.98,1.05546983]
[1735160954675,0.26194817,702.67,699.8,0.28579594]
[1735160954676,0.26194817,702.67,699.95,1.05546983]
[1735160955274,0.26194817,702.67,699.99,1.05546983]
[1735160955775,0.26195859,702.66,699.99,1.05546983]
[1735160955979,0.26195859,702.65,700.01,1.05546983]
[1735160956280,0.26195859,702.64,700.01,1.05546983]
[1735160956481,0.26195859,702.63,700.01,1.05546983]
[1735160956774,0.26195859,702.62,699.99,1.05546983]
[1735160956979,0.28462458,702.68,699.99,1.05546983]
[1735160956980,0.26195859,702.61,699.99,1.05546983]
[1735160957177,0.26195859,702.6,699.99,1.05546983]
[1735160957378,0.28462458,702.68,699.99,1.05546983]
[1735160957379,0.26195859,702.59,699.99,1.05546983]
[1735160957580,0.26195859,702.58,699.99,1.05546983]
[1735160957779,0.26195859,702.57,700.05,1.05546983]
[1735160957980,0.28462458,702.68,700.05,1.05546983]
[1735160958181,0.26193297,702.67,700.05,1.05546983]
[1735160958482,0.26193222,702.66,700.05,1.05546983]
[1735160958681,0.26193222,702.67,700.05,1.05546983]
[1735160958982,0.26193222,702.66,700.09,1.05546983]
[1735160959173,0.26193222,702.65,700.09,1.05546983]
[1735160959377,0.26193222,702.64,700.09,1.05546983]
[1735160959683,0.26193222,702.63,700.16,1.2665638]
[1735160959878,0.26193222,702.62,700.16,1.2665638]
[1735160960079,0.26193222,702.61,700.36,1.05546983]
[1735160960274,0.26193222,702.6,700.36,1.05546983]
[1735160960481,0.26193222,702.59,700.36,1.05546983]
[1735160960681,0.28462458,702.68,700.36,1.05546983]
[1735160960682,0.26193222,702.58,700.36,1.05546983]
[1735160960879,0.26193222,702.67,700.36,1.05546983]
[1735160961077,0.26193084,702.66,700.36,1.05546983]
[1735160961277,0.26193084,702.65,700.36,1.05546983]
[1735160961479,0.26193084,702.64,700.36,1.05546983]
[1735160961684,0.26193084,702.63,700.36,1.05546983]
[1735160961983,0.26193591,702.62,700.36,1.05546983]
[1735160962184,0.26193591,702.61,700.34,1.05546983]
[1735160962386,0.26193591,702.6,700.34,1.05546983]
[1735160962684,0.28462458,702.68,700.34,1.05546983]
[1735160962685,0.26193591,702.59,700.34,1.05546983]
[1735160962883,0.26193591,702.58,700.34,1.05546983]
[1735160963083,0.26193591,702.57,700.34,1.05546983]
[1735160963282,0.26193591,702.56,700.34,1.05546983]
[1735160963583,0.26193591,702.55,700.34,1.05546983]
[1735160963783,0.26193591,702.67,700.34,1.05546983]
[1735160963984,0.26193591,702.66,700.34,1.05546983]
[1735160964183,0.28462458,702.68,700.34,1.05546983]
[1735160964184,0.26193591,702.65,700.34,1.05546983]
[1735160964485,0.26193591,702.64,700.34,1.05546983]
[1735160964685,0.26193591,702.63,700.34,1.05546983]
[1735160964985,0.26193591,702.62,700.34,1.05546983]
[1735160965179,0.26193591,702.61,700.34,1.05546983]
[1735160965382,0.26193591,702.6,700.34,1.05546983]
[1735160965578,0.26193591,702.59,700.34,1.05546983]
[1735160965782,0.26193591,702.58,700.34,1.05546983]
[1735160965983,0.26193591,702.57,700.34,1.05546983]
[1735160966183,0.26193591,702.56,700.34,1.05546983]
[1735160966482,0.28462458,702.68,700.34,1.05546983]
[1735160966686,0.26193756,702.55,700.34,1.05546983]
[1735160966984,0.26193756,702.54,700.34,1.05546983]
[1735160967186,0.26193756,702.53,700.34,1.05546983]
[1735160967385,0.26193756,702.52,700.34,1.05546983]
[1735160967586,0.26193756,702.51,700.34,1.05546983]
[1735160967786,0.26193756,702.5,700.34,1.05546983]
[1735160968086,0.26193756,702.49,700.34,1.05546983]
[1735160968285,0.26193756,702.48,700.34,1.05546983]
[1735160968487,0.26193756,702.47,700.34,1.05546983]
[1735160968681,0.26193756,702.46,700.34,1.05546983]
[1735160968885,0.28462458,702.68,700.34,1.05546983]
[1735160968886,0.26193756,702.45,700.34,1.05546983]
[1735160969084,0.26193756,702.44,700.34,1.05546983]
[1735160969283,0.28462458,702.68,700.34,1.05546983]
[1735160969481,0.26192645,702.67,700.34,1.05546983]
[1735160970081,0.26193101,702.66,700.34,1.05546983]
[1735160970284,0.26193101,702.67,700.34,1.05546983]
[1735160970485,0.26193101,702.66,700.34,1.05546983]
[1735160970683,0.26193101,702.65,700.34,1.05546983]
[1735160970887,0.26193101,702.64,700.34,1.05546983]
[1735160971089,0.26193101,702.63,700.34,1.05546983]
[1735160971384,0.26193101,702.62,700.34,1.05546983]
[1735160971588,0.26193101,702.61,700.34,1.05546983]
[1735160971793,0.26193101,702.6,700.34,1.05546983]
[1735160971991,0.26193101,702.59,700.34,1.05546983]
[1735160972189,0.26193101,702.58,700.34,1.05546983]
[1735160972386,0.26193101,702.57,700.34,1.05546983]
[1735160972590,0.26193101,702.56,700.34,1.05546983]
[1735160972890,0.26193101,702.55,700.34,1.05546983]
[1735160973091,0.26193101,702.54,700.34,1.05546983]
[1735160973291,0.26193101,702.53,700.34,1.05546983]
[1735160973488,0.26193101,702.52,700.34,1.05546983]
[1735160973690,0.26193101,702.51,700.34,1.05546983]
[1735160973890,0.26193101,702.5,700.34,1.05546983]
[1735160974093,0.28462458,702.68,700.34,1.05546983]
[1735160974290,0.26195509,702.67,700.34,1.05546983]
[1735160974787,0.26195377,702.66,700.34,1.05546983]
[1735160975092,0.26195377,702.65,700.34,1.05546983]
[1735160975288,0.26195377,702.64,700.34,1.05546983]
[1735160975495,0.26195377,702.63,700.34,1.05546983]
[1735160975690,0.26195377,702.62,700.34,1.05546983]
[1735160975886,0.26195377,702.61,700.34,1.05546983]
[1735160976091,0.26195377,702.6,700.34,1.05546983]
[1735160976291,0.26195377,702.59,700.34,1.05546983]
[1735160976593,0.26195377,702.58,700.34,1.05546983]
[1735160976795,0.26195377,702.57,700.4,1.05546983]
[1735160976989,0.26195377,702.56,700.4,1.05546983]
[1735160977189,0.26195377,702.55,700.4,1.05546983]
[1735160977388,0.28462458,702.68,700.4,1.05546983]
[1735160977591,0.26195526,702.54,700.4,1.05546983]
[1735160977790,0.28462458,702.68,700.42,1.05546983]
[1735160978095,0.2619582,702.67,700.42,1.05546983]
[1735160978286,0.26195609,702.66,700.42,1.05546983]
[1735160978491,0.26195609,702.65,700.42,1.05546983]
[1735160978687,0.26195609,702.64,700.51,1.05546983]
[1735160978890,0.26195609,702.63,700.51,1.05546983]
[1735160979093,0.26195609,702.62,700.51,1.05546983]
[1735160979294,0.26195609,702.61,700.51,1.05546983]
[1735160979494,0.26195609,702.6,700.51,1.05546983]
[1735160979697,0.28462458,702.68,700.46,1.05546983]
[1735160979698,0.26195609,702.59,700.46,1.05546983]
[1735160979896,0.26195609,702.58,700.46,1.05546983]
[1735160980197,0.28462458,702.68,700.46,1.05546983]
[1735160980398,0.26197925,702.67,700.52,1.05546983]
[1735160980898,0.26197925,702.67,700.55,1.05546983]
[1735160981797,0.26197925,702.67,700.39,1.05546983]
[1735160982599,0.26197925,702.67,700.48,1.05546983]
[1735160982794,0.28462458,702.68,700.48,1.05546983]
[1735160982997,0.26202204,702.67,700.48,1.05546983]
[1735160983504,0.26202204,702.67,700.51,1.05546983]
[1735160984301,0.26202204,702.67,700.52,1.05546983]
[1735160985096,0.26202204,702.67,700.44,1.05546983]
[1735160985500,0.26202055,702.66,700.44,1.05546983]
[1735160985697,0.26202055,702.65,700.44,1.05546983]
[1735160986001,0.26202055,702.64,700.44,1.05546983]
[1735160986195,0.28462458,702.68,700.44,1.05546983]
[1735160986400,0.26201511,702.67,700.44,1.05546983]
[1735160986798,0.26201511,702.67,700.45,1.05546983]
[1735160987803,0.26201511,702.67,700.46,1.05546983]
[1735160988005,0.26201511,702.67,700.48,0.2855185]
[1735160988404,0.2620643,702.66,700.48,0.2855185]
[1735160988703,1.04794433,702.6,700.48,0.2855185]
[1735160988903,0.2620643,702.59,700.48,0.2855185]
[1735160989605,1.04794433,702.58,700.48,0.2855185]
[1735160989798,0.2620643,702.57,700.48,0.2855185]
[1735160990504,0.2620643,702.56,700.48,0.2855185]
[1735160990805,0.2620643,702.55,700.48,0.2855185]
[1735160991005,0.2620643,702.58,700.48,0.2855185]
[1735160991206,0.2620643,702.57,700.48,0.2855185]
[1735160991405,1.04794433,702.61,700.48,0.2855185]
[1735160991406,0.2620643,702.56,700.48,0.2855185]
[1735160991601,0.2620643,702.55,700.48,0.2855185]
[1735160991799,0.2620643,702.54,700.48,0.2855185]
[1735160992005,0.2620643,702.53,700.48,0.2855185]
[1735160992300,0.2620643,702.52,700.48,0.2855185]
[1735160992500,0.2620643,702.51,700.48,0.2855185]
[1735160992700,0.2620643,702.5,700.48,0.2855185]
[1735160992905,0.2620643,702.49,700.48,0.2855185]
[1735160993207,0.2620643,702.48,700.48,0.2855185]
[1735160993405,0.2620643,702.47,700.48,0.2855185]
[1735160993603,0.28462458,702.68,700.48,0.2855185]
[1735160993800,0.26208839,702.67,700.48,0.2855185]
[1735160994401,0.28462458,702.68,700.48,0.2855185]
[1735160994601,0.26208839,702.67,700.48,0.2855185]
[1735160996506,0.26211727,702.66,700.48,0.2855185]
[1735160996802,0.26211727,702.65,700.48,0.2855185]
[1735160997004,0.26211727,702.64,700.48,0.2855185]
[1735160997209,0.26211727,702.63,700.48,0.2855185]
[1735160997410,0.26211727,702.62,700.48,0.2855185]
[1735160997608,0.26211727,702.61,700.48,0.2855185]
[1735160997810,0.26211727,702.6,700.48,0.2855185]
[1735160998011,0.26211727,702.59,700.48,0.2855185]
[1735160998212,0.26211727,702.58,700.48,0.2855185]
[1735160998412,0.26211727,702.57,700.48,0.2855185]
[1735160998712,0.26211727,702.56,700.48,0.2855185]
[1735160998905,1.04794433,702.63,700.48,0.2855185]
[1735160998906,0.26211727,702.55,700.48,0.2855185]
[1735160999109,0.26208467,702.54,700.48,0.2855185]
[1735160999411,1.04794433,702.63,700.48,0.2855185]
[1735160999412,0.26208467,702.53,700.48,0.2855185]
[1735160999611,0.26208467,702.52,700.48,0.2855185]
[1735160999814,0.26208467,702.51,700.48,0.2855185]
[1735161000012,0.26208467,702.5,700.48,0.2855185]
[1735161000207,0.26208467,702.49,700.48,0.2855185]
[1735161000412,0.26208467,702.48,700.48,0.2855185]
[1735161000612,0.26208467,702.47,700.48,0.2855185]
[1735161000808,0.28462458,702.68,700.48,0.2855185]
[1735161000809,0.26208467,702.46,700.48,0.2855185]
[1735161001114,0.26209309,702.45,700.48,0.2855185]
[1735161001308,0.26209309,702.67,700.48,0.2855185]
[1735161001505,0.26209309,702.66,700.48,0.2855185]
[1735161001711,0.26209309,702.65,700.48,0.2855185]
[1735161002013,0.26208599,702.64,700.48,0.2855185]
[1735161002208,0.26208599,702.63,700.48,0.2855185]
[1735161002413,0.26208599,702.62,700.48,0.2855185]
[1735161002708,0.26208599,702.61,700.48,0.2855185]
[1735161002913,0.26208599,702.6,700.48,0.2855185]
[1735161003116,0.26208599,702.59,700.48,0.2855185]
[1735161003311,0.26208599,702.58,700.48,0.2855185]
[1735161003511,0.26208599,702.57,700.48,0.2855185]